lending/lending_fUSD_20241212
["ID","MTS","AMOUNT","RATE_DAILY","PERIOD"]
[345077030,1733983839477,-500.0,0.00011097,2]
[345077031,1733983839486,-500.0,0.00011097,2]
[345077032,1733983839495,-500.0,0.00011097,2]
[345077033,1733983839505,-500.0,0.00011097,2]
[345077034,1733983839514,-500.0,0.00011097,2]
[345077035,1733983839523,-633.84,0.00011097,2]
[345077036,1733983839533,-209.24,0.00011097,2]
[345077037,1733983839543,-460.96,0.00011097,2]
[345077038,1733983839552,-254.83,0.00011097,2]
[345077039,1733983839562,-600.41,0.00011097,2]
[345077040,1733983839571,-527.27,0.00011097,2]
[345077041,1733983839580,-507.43484694,0.00011097,2]
[345077042,1733983839589,-252.95807559,0.00011097,2]
[345077043,1733983839599,-500.0,0.00011097,2]
[345077044,1733983839608,-501.00731327,0.00011097,2]
[345077045,1733983839618,-500.0,0.00011097,2]
[345077046,1733983839628,-503.02810172,0.00011097,2]
[345077047,1733983839637,-150.255496,0.00011097,2]
[345077048,1733983839646,-500.0,0.00011097,2]
[345077049,1733983839656,-501.24145415,0.00011097,2]
[345077050,1733983839665,-500.0,0.00011097,2]
[345077051,1733983839675,-500.0,0.00011097,2]
[345077052,1733983839684,-208.046071,0.00011097,2]
[345077053,1733983839695,-600.121215,0.00011097,2]
[345077054,1733983839706,-600.121215,0.00011097,2]
[345077055,1733983839715,-600.121215,0.00011097,2]
[345077056,1733983839725,-600.121215,0.00011097,2]
[345077057,1733983839734,-600.121215,0.00011097,2]
[345077058,1733983839743,-600.121215,0.00011097,2]
[345077059,1733983839752,-600.121215,0.00011097,2]
[345077060,1733983839762,-600.121215,0.00011097,2]
[345077061,1733983839771,-600.121215,0.00011097,2]
[345077062,1733983839780,-600.121215,0.00011097,2]
[345077063,1733983839789,-500.0,0.00011097,2]
[345077064,1733983839800,-600.121215,0.00011097,3]
[345077065,1733983839810,-600.121215,0.00011097,3]
[345077066,1733983839820,-600.121215,0.00011097,3]
[345077067,1733983839831,-600.121215,0.00011097,3]
[345077068,1733983839840,-600.121215,0.00011097,3]
[345077069,1733983839849,-600.121215,0.00011097,3]
[345077070,1733983839858,-600.121215,0.00011097,3]
[345077071,1733983839868,-600.121215,0.00011097,3]
[345077072,1733983839877,-600.121215,0.00011097,3]
[345077073,1733983839886,-600.121215,0.00011097,3]
[345077074,1733983839896,-600.121215,0.00011097,3]
[345077075,1733983839907,-600.121215,0.00011097,2]
[345077076,1733983839917,-501.0355088,0.00011097,2]
[345077077,1733983839927,-515.97405241,0.00011097,2]
[345077078,1733983839936,-501.46075295,0.00011097,2]
[345077079,1733983839949,-500.0,0.00011097,2]
[345077080,1733983839961,-500.0,0.00011097,2]
[345077081,1733983839972,-266.05395295,0.00011097,2]
[345077082,1733983839981,-500.0,0.00011097,2]
[345077083,1733983839991,-500.0,0.00011097,2]
[345077084,1733983840004,-500.0,0.00011097,2]
[345077085,1733983840014,-501.31344434,0.00011097,2]
[345077086,1733983840025,-500.0,0.00011097,2]
[345077087,1733983840037,-500.0,0.00011097,2]
[345077088,1733983840048,-500.0,0.00011097,2]
[345077089,1733983840058,-164.65394,0.00011097,2]
[345077090,1733983840067,-676.69135,0.00011097,2]
[345077091,1733983840076,-504.01289045,0.00011097,2]
[345077092,1733983840086,-500.0,0.00011097,2]
[345077093,1733983840096,-500.0,0.00011097,2]
[345077094,1733983840107,-500.0,0.00011097,2]
[345077095,1733983840118,-512.52910467,0.00011097,2]
[345077096,1733983840130,-500.0,0.00011097,2]
[345077097,1733983840139,-506.69438535,0.00011097,2]
[345077098,1733983840149,-502.56417444,0.00011097,2]
[345077099,1733983840158,-504.24399762,0.00011097,2]
[345077100,1733983840167,-501.76112323,0.00011097,2]
[345077101,1733983840177,-502.1087448,0.00011097,2]
[345077102,1733983840187,-500.0,0.00011097,2]
[345077103,1733983840197,-505.48989413,0.00011097,2]
[345077104,1733983840206,-503.39927343,0.00011097,2]
[345077105,1733983840215,-505.14544624,0.00011097,2]
[345077106,1733983840224,-500.0,0.00011097,2]
[345077107,1733983840233,-500.0,0.00011097,2]
[345077108,1733983840243,-500.0,0.00011097,2]
[345077109,1733983840252,-500.0,0.00011097,2]
[345077110,1733983840261,-500.0,0.00011097,2]
[345077111,1733983840271,-500.0,0.00011097,2]
[345077112,1733983840280,-588.47,0.00011097,2]
[345077113,1733983840289,-500.0,0.00011097,2]
[345077114,1733983840299,-500.0,0.00011097,2]
[345077115,1733983840308,-500.0,0.00011097,2]
[345077116,1733983840318,-151.24845262,0.00011097,2]
[345077117,1733983840327,-500.0,0.00011097,2]
[345077118,1733983840336,-500.0,0.00011097,2]
[345077119,1733983840346,-500.0,0.00011097,2]
[345077120,1733983840355,-500.0,0.00011097,2]
[345077121,1733983840364,-500.0,0.00011097,2]
[345077122,1733983840373,-500.0,0.00011097,2]
[345077123,1733983840382,-500.0,0.00011097,2]
[345077124,1733983840391,-500.0,0.00011097,2]
[345077125,1733983840401,-500.0,0.00011097,2]
[345077126,1733983840412,-500.0,0.00011097,2]
[345077127,1733983840423,-500.0,0.00011097,2]
[345077128,1733983840433,-500.0,0.00011097,2]
[345077129,1733983840442,-511.02205838,0.00011097,2]
[345077130,1733983840454,-500.0,0.00011097,2]
[345077131,1733983840463,-376.41,0.00011097,2]
[345077132,1733983840472,-515.12087812,0.00011097,2]
[345077133,1733983840482,-500.0,0.00011097,2]
[345077134,1733983840491,-500.0,0.00011097,2]
[345077135,1733983840500,-529.69975912,0.00011097,2]
[345077136,1733983840509,-500.0,0.00011097,2]
[345077137,1733983840519,-500.0,0.00011097,2]
[345077138,1733983840528,-500.0,0.00011097,2]
[345077139,1733983840538,-500.0,0.00011097,2]
[345077140,1733983840547,-500.0,0.00011097,2]
[345077141,1733983840556,-7500.0,0.00011097,2]
[345077142,1733983840566,-500.0,0.00011097,2]
[345077143,1733983840575,-500.0,0.00011097,2]
[345077144,1733983840584,-500.0,0.00011098,2]
[345077145,1733983840593,-150.255496,0.00011098,2]
[345077146,1733983840602,-150.255496,0.00011098,2]
[345077147,1733983840612,-510.24703419,0.00011098,2]
[345077148,1733983840622,-191.54,0.00011098,2]
[345077149,1733983840631,-500.0,0.00011098,2]
[345077150,1733983840641,-500.0,0.00011098,2]
[345077151,1733983840651,-500.0,0.00011098,2]
[345077152,1733983840661,-500.0,0.00011098,2]
[345077153,1733983840671,-500.0,0.00011098,2]
[345077154,1733983840681,-208.046071,0.00011098,2]
[345077155,1733983840690,-208.046071,0.00011098,2]
[345077156,1733983840701,-500.0,0.00011098,2]
[345077157,1733983840710,-500.0,0.00011098,2]
[345077158,1733983840718,-501.84828322,0.00011098,2]
[345077159,1733983840728,-500.0,0.00011098,2]
[345077160,1733983840737,-500.0,0.00011098,2]
[345077161,1733983840746,-628.82,0.00011098,2]
[345077162,1733983840755,-500.0,0.00011098,2]
[345077163,1733983840764,-500.0,0.00011098,2]
[345077164,1733983840773,-500.0,0.00011098,2]
[345077165,1733983840782,-500.0,0.00011098,2]
[345077166,1733983840792,-500.0,0.00011098,2]
[345077167,1733983840801,-500.0,0.00011098,2]
[345077168,1733983840810,-163.75605155,0.00011098,2]
[345077169,1733983840819,-500.0,0.00011098,2]
[345077170,1733983840828,-500.0,0.00011098,2]
[345077171,1733983840838,-500.0,0.00011098,2]
[345077172,1733983840847,-500.0,0.00011098,2]
[345077173,1733983840856,-500.0,0.00011098,2]
[345077174,1733983840865,-500.0,0.00011098,2]
[345077175,1733983840874,-500.0,0.00011098,2]
[345077176,1733983840883,-500.0,0.00011098,2]
[345077177,1733983840893,-500.0,0.00011098,2]
[345077178,1733983840902,-500.0,0.00011098,2]
[345077179,1733983840911,-500.0,0.00011098,2]
[345077180,1733983840920,-660.06,0.00011098,2]
[345077181,1733983840931,-500.0,0.00011098,2]
[345077182,1733983840942,-500.0,0.00011098,2]
[345077183,1733983840954,-500.0,0.00011098,2]
[345077184,1733983840966,-500.0,0.00011098,2]
[345077185,1733983840975,-500.0,0.00011098,2]
[345077186,1733983840984,-500.0,0.00011098,2]
[345077187,1733983840993,-500.0,0.00011098,2]
[345077188,1733983841004,-500.0,0.00011098,2]
[345077189,1733983841014,-173.90415183,0.00011098,2]
[345077190,1733983841024,-500.0,0.00011098,2]
[345077191,1733983841037,-500.0,0.00011098,2]
[345077192,1733983841048,-500.0,0.00011098,2]
[345077193,1733983841058,-500.0,0.00011098,2]
[345077194,1733983841067,-500.0,0.00011098,2]
[345077195,1733983841076,-500.0,0.00011098,2]
[345077196,1733983841085,-500.0,0.00011098,2]
[345077197,1733983841094,-164.65394,0.00011098,2]
[345077198,1733983841104,-676.69135,0.00011098,2]
[345077199,1733983841113,-676.69135,0.00011098,2]
[345077200,1733983841123,-501.12004038,0.00011098,2]
[345077201,1733983841133,-500.0,0.00011098,2]
[345077202,1733983841143,-515.39943676,0.00011098,2]
[345077203,1733983841153,-500.0,0.00011098,2]
[345077204,1733983841162,-408.30994873,0.00011098,2]
[345077205,1733983841172,-500.0,0.00011098,2]
[345077206,1733983841181,-500.0,0.00011098,2]
[345077207,1733983841190,-518.72134168,0.00011098,2]
[345077208,1733983841202,-500.0,0.00011098,2]
[345077209,1733983841212,-500.0,0.00011098,2]
[345077210,1733983841221,-506.55118136,0.00011098,2]
[345077211,1733983841231,-500.0,0.00011098,2]
[345077212,1733983841240,-500.0,0.00011098,2]
[345077213,1733983841249,-500.0,0.00011098,2]
[345077214,1733983841259,-501.4341629,0.00011098,2]
[345077215,1733983841268,-500.0,0.00011098,2]
[345077216,1733983841280,-507.01476388,0.00011098,2]
[345077217,1733983841291,-498.750925,0.00011098,2]
[345077218,1733983841301,-163.28,0.00011098,2]
[345077219,1733983841311,-500.0,0.00011098,2]
[345077220,1733983841320,-500.0,0.00011098,2]
[345077221,1733983841330,-579.32415254,0.00011098,2]
[345077222,1733983841339,-599.85,0.00011098,2]
[345077223,1733983841348,-500.0,0.00011098,2]
[345077224,1733983841358,-186.96549783,0.00011098,2]
[345077225,1733983841367,-500.0,0.00011098,2]
[345077226,1733983841377,-256.80001452,0.00011098,2]
[345077227,1733983841386,-500.0,0.00011098,2]
[345077228,1733983841395,-500.0,0.00011098,2]
[345077229,1733983841404,-501.57956761,0.00011098,2]
[345077230,1733983841414,-500.0,0.00011098,2]
[345077231,1733983841424,-430.83420345,0.00011098,2]
[345077232,1733983841434,-500.0,0.00011098,2]
[345077233,1733983841446,-500.0,0.00011098,2]
[345077234,1733983841455,-500.0,0.00011098,2]
[345077235,1733983841464,-585.54,0.00011098,2]
[345077236,1733983841473,-500.0,0.00011098,2]
[345077237,1733983841482,-500.0,0.00011098,2]
[345077238,1733983841491,-510.91714862,0.00011098,2]
[345077239,1733983841500,-500.0,0.00011098,2]
[345077240,1733983841510,-500.0,0.00011098,2]
[345077241,1733983841520,-500.0,0.00011098,2]
[345077242,1733983841530,-500.0,0.00011098,2]
[345077243,1733983841541,-500.0,0.00011098,2]
[345077244,1733983841550,-500.0,0.00011098,2]
[345077245,1733983841559,-500.0,0.00011098,2]
[345077246,1733983841568,-500.0,0.00011098,2]
[345077247,1733983841577,-500.0,0.00011098,2]
[345077248,1733983841586,-500.0,0.00011098,2]
[345077249,1733983841596,-500.0,0.00011098,2]
[345077250,1733983841606,-500.0,0.00011098,2]
[345077251,1733983841615,-501.7952249,0.00011098,2]
[345077252,1733983841624,-501.65338327,0.00011098,2]
[345077253,1733983841633,-500.0,0.00011098,2]
[345077254,1733983841642,-500.0,0.00011098,2]
[345077255,1733983841651,-500.0,0.00011098,2]
[345077256,1733983841661,-500.0,0.00011098,2]
[345077257,1733983841670,-500.0,0.00011098,2]
[345077258,1733983841679,-500.0,0.00011098,2]
[345077259,1733983841689,-500.0,0.00011098,2]
[345077260,1733983841701,-500.0,0.00011098,2]
[345077261,1733983841710,-500.0,0.00011098,2]
[345077262,1733983841720,-500.0,0.00011098,2]
[345077263,1733983841730,-500.0,0.00011098,2]
[345077264,1733983841740,-500.0,0.00011098,2]
[345077265,1733983841749,-3027.03,0.00011098,2]
[345077266,1733983841759,-3027.03,0.00011098,2]
[345077267,1733983841768,-507.16809621,0.00011098,2]
[345077268,1733983841777,-500.0,0.00011098,2]
[345077269,1733983841786,-500.0,0.00011098,2]
[345077270,1733983841795,-727.21,0.00011098,2]
[345077271,1733983841804,-727.21,0.00011098,2]
[345077272,1733983841814,-500.0,0.00011098,2]
[345077273,1733983841824,-500.0,0.00011098,2]
[345077274,1733983841834,-500.0,0.00011098,2]
[345077275,1733983841844,-500.0,0.00011098,2]
[345077276,1733983841853,-500.0,0.00011098,2]
[345077277,1733983841863,-500.0,0.00011098,2]
[345077278,1733983841872,-553.52793166,0.00011098,2]
[345077279,1733983841881,-1334.21,0.00011098,2]
[345077280,1733983841890,-500.0,0.00011098,2]
[345077281,1733983841899,-500.0,0.00011098,2]
[345077282,1733983841908,-500.0,0.00011098,2]
[345077283,1733983841917,-500.0,0.00011098,2]
[345077284,1733983841927,-500.0,0.00011098,2]
[345077285,1733983841937,-500.0,0.00011098,2]
[345077286,1733983841947,-583.89,0.00011098,2]
[345077287,1733983841957,-583.89,0.00011098,2]
[345077288,1733983841971,-500.0,0.00011098,2]
[345077289,1733983841981,-500.0,0.00011098,2]
[345077290,1733983841990,-500.0,0.00011098,2]
[345077291,1733983842000,-500.0,0.00011098,2]
[345077292,1733983842010,-507.80824768,0.00011098,2]
[345077293,1733983842020,-604.2,0.00011098,2]
[345077294,1733983842029,-500.0,0.00011098,2]
[345077295,1733983842039,-504.32064255,0.00011098,2]
[345077296,1733983842048,-500.0,0.00011098,2]
[345077297,1733983842058,-500.0,0.00011098,2]
[345077298,1733983842067,-500.0,0.00011098,2]
[345077299,1733983842076,-500.0,0.00011098,2]
[345077300,1733983842085,-500.0,0.00011098,2]
[345077301,1733983842094,-500.0,0.00011098,2]
[345077302,1733983842104,-500.0,0.00011098,2]
[345077303,1733983842113,-500.0,0.00011098,2]
[345077304,1733983842122,-507.36641304,0.00011098,2]
[345077305,1733983842132,-500.0,0.00011098,2]
[345077306,1733983842142,-500.0,0.00011098,2]
[345077307,1733983842151,-242.32,0.00011098,2]
[345077309,1733983842327,-532.75515267,0.00011098,2]
[345077310,1733983842338,-500.0,0.00011098,2]
[345077311,1733983842348,-500.0,0.00011098,2]
[345077312,1733983842357,-500.0,0.00011098,2]
[345077313,1733983842367,-500.0,0.00011098,2]
[345077314,1733983842376,-500.0,0.00011098,2]
[345077315,1733983842385,-500.0,0.00011098,2]
[345077316,1733983842395,-507.48898149,0.00011098,2]
[345077317,1733983842404,-503.1938581,0.00011098,2]
[345077318,1733983842413,-501.78351251,0.00011098,2]
[345077319,1733983842422,-506.16854947,0.00011098,2]
[345077320,1733983842431,-676.32,0.00011098,2]
[345077321,1733983842441,-676.32,0.00011098,2]
[345077323,1733983842453,-500.0,0.00011098,2]
[345077326,1733983842462,-500.0,0.00011098,2]
[345077327,1733983842477,-504.7944954,0.00011098,2]
[345077328,1733983842485,-500.0,0.00011098,2]
[345077329,1733983842494,-514.32842001,0.00011098,2]
[345077330,1733983842503,-500.0,0.00011098,2]
[345077332,1733983842512,-500.0,0.00011098,2]
[345077334,1733983842521,-508.62152874,0.00011098,2]
[345077336,1733983842531,-500.0,0.00011098,2]
[345077338,1733983842540,-500.0,0.00011098,2]
[345077340,1733983842550,-500.0,0.00011098,2]
[345077341,1733983842559,-503.03795039,0.00011098,2]
[345077343,1733983842568,-500.0,0.00011098,2]
[345077345,1733983842577,-500.0,0.00011098,2]
[345077346,1733983842586,-500.0,0.00011098,2]
[345077347,1733983842596,-509.71652617,0.00011098,2]
[345077348,1733983842605,-500.0,0.00011098,2]
[345077349,1733983842615,-513.66021612,0.00011098,2]
[345077350,1733983842625,-500.0,0.00011098,2]
[345077351,1733983842634,-504.89471763,0.00011098,2]
[345077352,1733983842643,-500.0,0.00011098,2]
[345077353,1733983842652,-500.0,0.00011098,2]
[345077354,1733983842661,-500.0,0.00011098,2]
[345077355,1733983842670,-554.30483031,0.00011098,2]
[345077356,1733983842679,-588.47,0.00011098,2]
[345077357,1733983842689,-592.16913042,0.00011098,2]
[345077358,1733983842701,-588.47,0.00011098,2]
[345077359,1733983842710,-492.88623388,0.00011098,2]
[345077360,1733983842719,-500.0,0.00011098,2]
[345077361,1733983842727,-500.0,0.00011098,2]
[345077362,1733983842737,-500.0,0.00011098,2]
[345077363,1733983842746,-540.15975753,0.00011098,2]
[345077364,1733983842755,-503.06109437,0.00011098,2]
[345077365,1733983842764,-503.23386444,0.00011098,2]
[345077366,1733983842773,-504.13518614,0.00011098,2]
[345077367,1733983842783,-500.0,0.00011098,2]
[345077368,1733983842793,-500.0,0.00011098,2]
[345077369,1733983842803,-500.0,0.00011098,2]
[345077370,1733983842813,-500.0,0.00011098,2]
[345077371,1733983842822,-506.72283097,0.00011098,2]
[345077372,1733983842831,-500.0,0.00011098,2]
[345077373,1733983842840,-500.0,0.00011098,2]
[345077374,1733983842849,-500.0,0.00011098,2]
[345077375,1733983842859,-500.0,0.00011098,2]
[345077376,1733983842868,-502.88007344,0.00011098,2]
[345077377,1733983842877,-301.37307334,0.00011098,2]
[345077378,1733983842887,-500.0,0.00011098,2]
[345077379,1733983842896,-500.99717809,0.00011098,2]
[345077380,1733983842906,-500.0,0.00011098,2]
[345077381,1733983842916,-500.0,0.00011098,2]
[345077382,1733983842924,-506.77682753,0.00011098,2]
[345077383,1733983842933,-503.82903124,0.00011098,2]
[345077384,1733983842942,-500.0,0.00011098,2]
[345077385,1733983842954,-500.44791424,0.00011098,2]
[345077386,1733983842969,-500.0,0.00011098,2]
[345077387,1733983842979,-507.71671029,0.00011098,2]
[345077388,1733983842989,-503.69257439,0.00011098,2]
[345077389,1733983843000,-500.0,0.00011098,2]
[345077390,1733983843011,-500.0,0.00011098,2]
[345077391,1733983843020,-507.60424542,0.00011098,2]
[345077392,1733983843029,-500.0,0.00011098,2]
[345077393,1733983843040,-501.76116013,0.00011098,2]
[345077394,1733983843051,-500.0,0.00011098,2]
[345077395,1733983843061,-500.0,0.00011098,2]
[345077396,1733983843070,-500.0,0.00011098,2]
[345077397,1733983843080,-500.0,0.00011098,2]
[345077398,1733983843090,-500.0,0.00011098,2]
[345077399,1733983843099,-502.54287307,0.00011098,2]
[345077400,1733983843109,-502.58725587,0.00011098,2]
[345077401,1733983843119,-500.0,0.00011098,2]
[345077402,1733983843130,-502.75284718,0.00011098,2]
[345077403,1733983843140,-504.63282295,0.00011098,2]
[345077404,1733983843150,-500.0,0.00011098,2]
[345077405,1733983843159,-500.0,0.00011098,2]
[345077406,1733983843170,-503.7797895,0.00011098,2]
[345077407,1733983843179,-500.0,0.00011098,2]
[345077408,1733983843189,-505.85124656,0.00011098,2]
[345077409,1733983843202,-500.0,0.00011098,2]
[345077410,1733983843212,-500.0,0.00011098,2]
[345077411,1733983843222,-500.0,0.00011098,2]
[345077412,1733983843232,-500.0,0.00011098,2]
[345077413,1733983843243,-500.0,0.00011098,2]
[345077414,1733983843252,-512.24168703,0.00011098,2]
[345077415,1733983843262,-500.0,0.00011098,2]
[345077416,1733983843272,-500.0,0.00011098,2]
[345077417,1733983843281,-500.0,0.00011098,2]
[345077418,1733983843291,-500.0,0.00011098,2]
[345077419,1733983843300,-505.53919345,0.00011098,2]
[345077420,1733983843310,-500.0,0.00011098,2]
[345077421,1733983843320,-504.39120267,0.00011098,2]
[345077422,1733983843329,-500.0,0.00011098,2]
[345077423,1733983843339,-500.0,0.00011098,2]
[345077424,1733983843349,-545.45165209,0.00011098,2]
[345077425,1733983843359,-500.0,0.00011098,2]
[345077426,1733983843368,-500.0,0.00011098,2]
[345077427,1733983843378,-502.92548491,0.00011098,2]
[345077428,1733983843388,-500.0,0.00011098,2]
[345077429,1733983843398,-500.0,0.00011098,2]
[345077430,1733983843408,-500.0,0.00011098,2]
[345077431,1733983843419,-504.55090092,0.00011098,2]
[345077432,1733983843430,-500.0,0.00011098,2]
[345077433,1733983843439,-500.0,0.00011098,2]
[345077434,1733983843450,-500.0,0.00011098,2]
[345077435,1733983843459,-502.19071329,0.00011098,2]
[345077436,1733983843469,-465.11724709,0.00011098,2]
[345077437,1733983843479,-500.0,0.00011098,2]
[345077438,1733983843488,-500.0,0.00011098,2]
[345077439,1733983843498,-510.04106228,0.00011098,2]
[345077440,1733983843507,-500.0,0.00011098,2]
[345077442,1733983843517,-500.0,0.00011098,2]
[345077444,1733983843527,-1020.75,0.00011098,2]
[345077446,1733983843536,-1020.75,0.00011098,2]
[345077448,1733983843545,-500.0,0.00011098,2]
[345077450,1733983843555,-500.0,0.00011098,2]
[345077452,1733983843565,-500.0,0.00011098,2]
[345077454,1733983843574,-502.04482622,0.00011098,2]
[345077456,1733983843584,-501.42557308,0.00011098,2]
[345077458,1733983843593,-500.0,0.00011098,2]
[345077460,1733983843602,-500.0,0.00011098,2]
[345077462,1733983843612,-500.0,0.00011098,2]
[345077464,1733983843622,-500.0,0.00011098,2]
[345077466,1733983843632,-503.23621371,0.00011098,2]
[345077468,1733983843641,-877.0,0.00011098,2]
[345077470,1733983843651,-877.0,0.00011098,2]
[345077472,1733983843661,-500.0,0.00011098,2]
[345077474,1733983843671,-500.0,0.00011098,2]
[345077475,1733983843681,-500.0,0.00011098,2]
[345077476,1733983843690,-261.18241197,0.00011098,2]
[345077477,1733983843702,-502.43911535,0.00011098,2]
[345077478,1733983843711,-502.88044644,0.00011098,2]
[345077479,1733983843721,-505.31296034,0.00011098,2]
[345077480,1733983843730,-510.43027819,0.00011098,2]
[345077481,1733983843740,-500.0,0.00011098,2]
[345077482,1733983843749,-500.0,0.00011098,2]
[345077483,1733983843759,-586.94342556,0.00011098,2]
[345077484,1733983843769,-500.0,0.00011098,2]
[345077485,1733983843778,-594.48,0.00011098,2]
[345077486,1733983843788,-500.0,0.00011098,2]
[345077487,1733983843797,-500.0,0.00011098,2]
[345077488,1733983843806,-500.0,0.00011098,2]
[345077489,1733983843816,-500.0,0.00011098,2]
[345077490,1733983843826,-548.73702053,0.00011098,2]
[345077491,1733983843835,-500.0,0.00011098,2]
[345077492,1733983843845,-1000.0,0.00011098,2]
[345077493,1733983843855,-626.57,0.00011098,2]
[345077494,1733983843866,-626.57,0.00011098,2]
[345077495,1733983843875,-502.81929174,0.00011098,2]
[345077496,1733983843885,-500.0,0.00011098,2]
[345077497,1733983843894,-500.0,0.00011098,2]
[345077498,1733983843903,-632.03984969,0.00011098,2]
[345077499,1733983843914,-500.0,0.00011098,2]
[345077500,1733983843923,-500.0,0.00011098,2]
[345077501,1733983843934,-500.0,0.00011098,2]
[345077502,1733983843944,-500.0,0.00011098,2]
[345077503,1733983843955,-500.0,0.00011098,2]
[345077504,1733983843967,-508.60882008,0.00011098,2]
[345077505,1733983843976,-500.0,0.00011098,2]
[345077506,1733983843987,-219.95747165,0.00011098,2]
[345077507,1733983843996,-495.40809184,0.00011098,2]
[345077508,1733983844006,-500.0,0.00011098,2]
[345077509,1733983844016,-500.0,0.00011098,2]
[345077510,1733983844025,-500.0,0.00011098,2]
[345077511,1733983844035,-500.0,0.00011098,2]
[345077512,1733983844047,-500.0,0.00011098,2]
[345077513,1733983844056,-500.0,0.00011098,2]
[345077514,1733983844066,-500.0,0.00011098,2]
[345077515,1733983844075,-500.0,0.00011098,2]
[345077516,1733983844085,-565.2621959,0.00011098,2]
[345077517,1733983844095,-500.0,0.00011098,2]
[345077518,1733983844104,-500.0,0.00011098,2]
[345077519,1733983844117,-500.0,0.00011098,2]
[345077520,1733983844132,-500.0,0.00011098,2]
[345077521,1733983844141,-500.0,0.00011098,2]
[345077522,1733983844151,-500.0,0.00011098,2]
[345077523,1733983844160,-500.0,0.00011098,2]
[345077524,1733983844170,-500.0,0.00011098,2]
[345077525,1733983844180,-500.0,0.00011098,2]
[345077526,1733983844191,-500.0,0.00011098,2]
[345077527,1733983844203,-500.0,0.00011098,2]
[345077528,1733983844213,-500.0,0.00011098,2]
[345077529,1733983844222,-500.0,0.00011098,2]
[345077530,1733983844232,-500.0,0.00011098,2]
[345077531,1733983844241,-316.70087341,0.00011098,2]
[345077532,1733983844251,-500.0,0.00011098,2]
[345077533,1733983844261,-500.0,0.00011098,2]
[345077534,1733983844275,-500.0,0.00011098,2]
[345077535,1733983844289,-7500.0,0.00011098,2]
[345077536,1733983844300,-500.0,0.00011098,2]
[345077537,1733983844309,-500.0,0.00011098,2]
[345077538,1733983844319,-7500.0,0.00011098,2]
[345077539,1733983844329,-500.0,0.00011098,2]
[345077540,1733983844339,-608.23671798,0.00011098,2]
[345077541,1733983844348,-509.77598357,0.00011098,2]
[345077542,1733983844358,-500.0,0.00011098,2]
[345077543,1733983844367,-500.0,0.00011098,2]
[345077544,1733983844377,-500.0,0.00011098,2]
[345077545,1733983844386,-500.0,0.00011098,2]
[345077546,1733983844395,-515.76314086,0.00011098,2]
[345077547,1733983844404,-574.13,0.00011098,2]
[345077548,1733983844414,-500.0,0.00011098,2]
[345077549,1733983844423,-500.0,0.00011098,2]
[345077550,1733983844433,-500.0,0.00011098,2]
[345077551,1733983844442,-330.50527949,0.00011098,2]
[345077552,1733983844453,-500.0,0.00011098,2]
[345077553,1733983844463,-500.0,0.00011098,2]
[345077554,1733983844473,-500.0,0.00011098,2]
[345077555,1733983844482,-396.63748227,0.00011098,2]
[345077556,1733983844492,-2000.0,0.00011099,2]
[345077557,1733983844501,-2000.0,0.00011099,2]